fUSD/lending_fUSD_20250219
["ID","MTS","AMOUNT","RATE_DAILY","PERIOD"]
[353677642,1739987464351,-1188.83,0.00011698,2]
[353677643,1739987464362,-522.31305117,0.00011698,2]
[353677645,1739987464372,-788.62,0.00011698,2]
[353677647,1739987464383,-503.08,0.00011698,2]
[353677649,1739987464393,-1971.73,0.00011698,2]
[353677651,1739987464403,-672.32,0.00011698,2]
[353677655,1739987464575,-500.0,0.00011698,2]
[353677658,1739987464596,-808.29,0.00011698,2]
[353677660,1739987464606,-500.0,0.00011698,2]
[353677662,1739987464616,-720.08,0.00011698,2]
[353677664,1739987464626,-566.48,0.00011698,2]
[353677666,1739987464635,-932.0,0.00011698,2]
[353677668,1739987464646,-840.91,0.00011698,2]
[353677670,1739987464655,-517.52,0.00011698,2]
[353677672,1739987464665,-662.15,0.00011698,2]
[353677674,1739987464675,-1035.82,0.00011698,2]
[353677676,1739987464684,-1035.21,0.00011698,2]
[353677678,1739987464694,-1483.43,0.00011698,2]
[353677680,1739987464705,-1154.98,0.00011698,2]
[353677681,1739987464715,-811.37,0.00011698,2]
[353677682,1739987464724,-896.95,0.00011698,2]
[353677683,1739987464735,-1939.26,0.00011698,2]
[353677684,1739987464745,-954.7,0.00011698,2]
[353677685,1739987464755,-753.25,0.00011698,2]
[353677686,1739987464765,-1057.93,0.00011698,2]
[353677687,1739987464775,-1081.88,0.00011698,2]
[353677688,1739987464786,-893.96,0.00011698,2]
[353677689,1739987464796,-1776.36,0.00011698,2]
[353677690,1739987464806,-1231.15,0.00011698,2]
[353677691,1739987464817,-1082.49,0.00011698,2]
[353677692,1739987464827,-1074.53,0.00011698,2]
[353677693,1739987464837,-500.0,0.00011698,2]
[353677694,1739987464846,-1842.35,0.00011698,2]
[353677695,1739987464856,-500.0,0.00011698,2]
[353677696,1739987464866,-1188.97,0.00011698,2]
[353677697,1739987464875,-881.03,0.00011698,2]
[353677698,1739987464885,-711.42,0.00011698,2]
[353677699,1739987464895,-819.54,0.00011698,2]
[353677700,1739987464905,-1127.42,0.00011698,2]
[353677701,1739987464915,-744.32,0.00011698,2]
[353677702,1739987464925,-500.0,0.00011698,2]
[353677703,1739987464935,-904.15,0.00011698,2]
[353677704,1739987464945,-500.0,0.00011698,2]
[353677705,1739987464955,-500.0,0.00011698,2]
[353677706,1739987464965,-744.25,0.00011698,2]
[353677707,1739987464975,-1246.08,0.00011698,2]
[353677708,1739987464986,-1227.92,0.00011698,2]
[353677709,1739987464996,-500.0,0.00011698,2]
[353677710,1739987465006,-664.94,0.00011698,2]
[353677711,1739987465016,-1901.67,0.00011698,2]
[353677712,1739987465026,-500.0,0.00011698,2]
[353677713,1739987465036,-500.0,0.00011698,2]
[353677714,1739987465046,-1108.43,0.00011698,2]
[353677715,1739987465056,-990.17,0.00011698,2]
[353677716,1739987465066,-500.0,0.00011698,2]
[353677717,1739987465076,-1901.78,0.00011698,2]
[353677718,1739987465086,-500.0,0.00011698,2]
[353677719,1739987465096,-1290.72,0.00011698,2]
[353677720,1739987465106,-2211.03,0.00011698,2]
[353677721,1739987465116,-1736.87,0.00011698,2]
[353677722,1739987465125,-2335.41,0.00011698,2]
[353677723,1739987465135,-500.0,0.00011698,2]
[353677724,1739987465145,-812.42,0.00011698,2]
[353677725,1739987465155,-500.0,0.00011698,2]
[353677726,1739987465165,-1527.63,0.00011698,2]
[353677727,1739987465175,-4591.13,0.00011698,2]
[353677728,1739987465185,-500.0,0.00011698,2]
[353677729,1739987465195,-1000.0,0.00011698,2]
[353677730,1739987465205,-1566.76,0.00011698,2]
[353677731,1739987465214,-1821.09,0.00011698,2]
[353677732,1739987465224,-955.62,0.00011698,2]
[353677733,1739987465234,-1496.47,0.00011698,2]
[353677734,1739987465244,-500.0,0.00011698,2]
[353677735,1739987465253,-500.0,0.00011698,2]
[353677736,1739987465263,-1307.0,0.00011698,2]
[353677737,1739987465275,-1091.01,0.00011698,2]
[353677738,1739987465287,-500.0,0.00011698,2]
[353677739,1739987465297,-1646.83,0.00011698,2]
[353677740,1739987465307,-500.0,0.00011698,2]
[353677741,1739987465317,-882.64,0.00011698,2]
[353677742,1739987465328,-2442.27,0.00011698,2]
[353677743,1739987465339,-926.03,0.00011698,2]
[353677744,1739987465349,-513.95,0.00011698,2]
[353677745,1739987465360,-500.0,0.00011698,2]
[353677746,1739987465372,-999.95,0.00011698,2]
[353677747,1739987465383,-1684.83,0.00011698,2]
[353677748,1739987465393,-1014.56,0.00011698,2]
[353677749,1739987465403,-1230.45,0.00011698,2]
[353677750,1739987465414,-1071.28,0.00011698,2]
[353677751,1739987465423,-500.0,0.00011698,2]
[353677752,1739987465433,-788.39,0.00011698,2]
[353677753,1739987465443,-500.0,0.00011698,2]
[353677754,1739987465454,-737.79,0.00011698,2]
[353677755,1739987465464,-500.0,0.00011698,2]
[353677756,1739987465474,-1140.37,0.00011698,2]
[353677757,1739987465486,-1541.55,0.00011698,2]
[353677758,1739987465496,-1012.93,0.00011698,2]
[353677759,1739987465506,-993.33,0.00011698,2]
[353677760,1739987465516,-500.0,0.00011698,2]
[353677761,1739987465525,-947.02,0.00011698,2]
[353677762,1739987465535,-752.42,0.00011698,2]
[353677763,1739987465545,-1322.03,0.00011698,2]
[353677764,1739987465555,-500.0,0.00011698,2]
[353677765,1739987465565,-500.0,0.00011698,2]
[353677766,1739987465575,-1118.2,0.00011698,2]
[353677767,1739987465584,-992.83,0.00011698,2]
[353677768,1739987465595,-1423.73,0.00011698,2]
[353677769,1739987465605,-1072.75,0.00011698,2]
[353677770,1739987465615,-1110.66,0.00011698,2]
[353677771,1739987465625,-500.0,0.00011698,2]
[353677772,1739987465635,-991.44,0.00011698,2]
[353677773,1739987465644,-500.0,0.00011698,2]
[353677774,1739987465654,-734.87,0.00011698,2]
[353677775,1739987465664,-1462.21,0.00011698,2]
[353677776,1739987465673,-506.11,0.00011698,2]
[353677777,1739987465683,-500.0,0.00011698,2]
[353677778,1739987465694,-660.15,0.00011698,2]
[353677779,1739987465704,-500.0,0.00011698,2]
[353677780,1739987465714,-1154.52,0.00011698,2]
[353677781,1739987465724,-500.0,0.00011698,2]
[353677782,1739987465734,-705.06,0.00011698,2]
[353677783,1739987465743,-694.37,0.00011698,2]
[353677784,1739987465753,-928.72,0.00011698,2]
[353677785,1739987465763,-840.96,0.00011698,2]
[353677786,1739987465774,-1357.84,0.00011698,2]
[353677787,1739987465783,-500.0,0.00011698,2]
[353677788,1739987465794,-1600.63,0.00011698,2]
[353677789,1739987465804,-728.08,0.00011698,2]
[353677790,1739987465814,-1114.04,0.00011698,2]
[353677791,1739987465825,-892.41,0.00011698,2]
[353677792,1739987465835,-1054.42,0.00011698,2]
[353677793,1739987465845,-1568.95,0.00011698,2]
[353677794,1739987465855,-671.12,0.00011698,2]
[353677795,1739987465867,-782.68,0.00011698,2]
[353677796,1739987465878,-515.12,0.00011698,2]
[353677797,1739987465888,-914.52,0.00011698,2]
[353677798,1739987465898,-500.0,0.00011698,2]
[353677799,1739987465908,-1011.45,0.00011698,2]
[353677800,1739987465919,-1072.02,0.00011698,2]
[353677801,1739987465928,-1097.96,0.00011698,2]
[353677802,1739987465938,-4182.8,0.00011698,2]
[353677803,1739987465948,-500.0,0.00011698,2]
[353677804,1739987465959,-705.13,0.00011698,2]
[353677805,1739987465969,-1437.68,0.00011698,2]
[353677806,1739987465978,-430.68912695,0.00011698,2]
[353677807,1739987465989,-795.0,0.00011698,2]
[353677808,1739987465999,-874.82,0.00011698,2]
[353677809,1739987466009,-1015.54,0.00011698,2]
[353677810,1739987466019,-644.23,0.00011698,2]
[353677811,1739987466029,-1039.88,0.00011698,2]
[353677812,1739987466039,-500.0,0.00011698,2]
[353677813,1739987466048,-614.0,0.00011698,2]
[353677814,1739987466058,-1336.31,0.00011698,2]
[353677815,1739987466068,-500.0,0.00011698,2]
[353677816,1739987466078,-866.14,0.00011698,2]
[353677817,1739987466087,-1003.06,0.00011698,2]
[353677818,1739987466098,-1114.28,0.00011698,2]
[353677819,1739987466107,-530.87,0.00011698,2]
[353677820,1739987466119,-500.0,0.00011698,2]
[353677821,1739987466129,-1022.6,0.00011698,2]
[353677822,1739987466138,-1345.04,0.00011698,2]
[353677823,1739987466147,-1740.48,0.00011698,2]
[353677824,1739987466157,-500.0,0.00011698,2]
[353677825,1739987466167,-500.0,0.00011698,2]
[353677826,1739987466177,-998.3,0.00011698,2]
[353677827,1739987466188,-500.0,0.00011698,2]
[353677828,1739987466198,-1414.34,0.00011698,2]
[353677829,1739987466210,-3066.13,0.00011698,2]
[353677830,1739987466220,-512.06,0.00011698,2]
[353677831,1739987466230,-593.78,0.00011698,2]
[353677832,1739987466240,-1153.26,0.00011698,2]
[353677833,1739987466249,-1550.39,0.00011698,2]
[353677834,1739987466259,-701.17,0.00011698,2]
[353677835,1739987466270,-500.0,0.00011698,2]
[353677836,1739987466283,-574.37,0.00011698,2]
[353677837,1739987466293,-286.1444404,0.00011745,2]
[353677838,1739987466303,-620.94352836,0.00011779,2]
[353677839,1739987466313,-603.2,0.00011779,2]
[353677840,1739987466323,-513.07166307,0.00011779,2]
[353677841,1739987466333,-500.0,0.00011779,2]
[353677842,1739987466343,-500.0,0.00011779,2]
[353677843,1739987466352,-500.0,0.00011779,2]
[353677844,1739987466364,-500.0,0.00011779,2]
[353677845,1739987466374,-500.0,0.00011779,2]
[353677846,1739987466384,-372.09449062,0.00011779,2]
[353677847,1739987466395,-888.52,0.00011779,2]
[353677848,1739987466405,-500.0,0.00011779,2]
[353677849,1739987466416,-512.05213136,0.00011779,2]
[353677850,1739987466426,-500.0,0.00011779,2]
[353677851,1739987466436,-500.0,0.00011779,2]
[353677852,1739987466446,-500.0,0.00011779,2]
[353677853,1739987466456,-1381.16,0.00011779,2]
[353677854,1739987466467,-500.0,0.00011779,2]
[353677855,1739987466477,-500.0,0.00011779,2]
[353677856,1739987466487,-500.0,0.00011779,2]
[353677857,1739987466497,-500.0,0.00011779,2]
[353677858,1739987466506,-550.12102332,0.00011779,2]
[353677859,1739987466516,-500.0,0.00011779,2]
[353677860,1739987466526,-500.0,0.00011779,2]
[353677861,1739987466535,-500.0,0.00011779,2]
[353677862,1739987466545,-500.0,0.00011779,2]
[353677863,1739987466555,-500.0,0.00011779,2]
[353677864,1739987466566,-500.0,0.00011779,2]
[353677865,1739987466576,-500.0,0.00011779,2]
[353677866,1739987466586,-734.99,0.00011779,2]
[353677867,1739987466596,-503.19489683,0.00011779,2]
[353677868,1739987466606,-500.0,0.00011779,2]
[353677869,1739987466617,-500.0,0.00011779,2]
[353677870,1739987466627,-813.48,0.00011779,2]
[353677871,1739987466637,-500.0,0.00011779,2]
[353677872,1739987466647,-500.0,0.00011779,2]
[353677873,1739987466658,-1086.23,0.00011779,2]
[353677874,1739987466667,-500.0,0.00011779,2]
[353677875,1739987466677,-500.0,0.00011779,2]
[353677876,1739987466687,-500.0,0.00011779,2]
[353677877,1739987466697,-500.0,0.00011779,2]
[353677878,1739987466707,-500.0,0.00011779,2]
[353677879,1739987466717,-500.0,0.00011779,2]
[353677880,1739987466727,-500.0,0.00011779,2]
[353677881,1739987466737,-500.0,0.00011779,2]
[353677882,1739987466747,-500.0,0.00011779,2]
[353677883,1739987466757,-728.33,0.00011779,2]
[353677884,1739987466766,-500.0,0.00011779,2]
[353677885,1739987466776,-535.77,0.00011779,2]
[353677886,1739987466786,-500.0,0.00011779,2]
[353677887,1739987466797,-500.0,0.00011779,2]
[353677888,1739987466808,-500.0,0.00011779,2]
[353677889,1739987466820,-500.0,0.00011779,2]
[353677890,1739987466832,-871.59,0.00011779,2]
[353677891,1739987466844,-500.0,0.00011779,2]
[353677892,1739987466854,-500.0,0.00011779,2]
[353677893,1739987466865,-697.1,0.00011779,2]
[353677894,1739987466874,-500.0,0.00011779,2]
[353677895,1739987466882,-500.0,0.00011779,2]
[353677896,1739987466890,-500.0,0.00011779,2]
[353677897,1739987466898,-1715.25,0.00011779,2]
[353677898,1739987466905,-500.0,0.00011779,2]
[353677899,1739987466916,-500.0,0.00011779,2]
[353677900,1739987466926,-553.32,0.00011779,2]
[353677901,1739987466935,-2117.09,0.00011779,2]
[353677902,1739987466945,-500.0,0.00011779,2]
[353677903,1739987466955,-500.0,0.00011779,2]
[353677904,1739987466965,-501.9530557,0.00011779,2]
[353677905,1739987466975,-500.0,0.00011779,2]
[353677906,1739987466984,-500.0,0.00011779,2]
[353677907,1739987466994,-500.0,0.00011779,2]
[353677908,1739987467005,-500.0,0.00011779,2]
[353677909,1739987467014,-1204.62,0.00011779,2]
[353677910,1739987467023,-500.0,0.00011779,2]
[353677911,1739987467033,-500.0,0.00011779,2]
[353677912,1739987467044,-500.0,0.00011779,2]
[353677913,1739987467055,-500.0,0.00011779,2]
[353677914,1739987467066,-500.0,0.00011779,2]
[353677915,1739987467075,-500.0,0.00011779,2]
[353677916,1739987467085,-500.0,0.00011779,2]
[353677917,1739987467094,-208.74850025,0.00011779,2]
[353677918,1739987467103,-500.0,0.00011779,2]
[353677919,1739987467114,-500.0,0.00011779,2]
[353677920,1739987467124,-7165.21,0.00011779,2]
[353677921,1739987467190,-500.0,0.00011779,2]
[353677922,1739987467200,-500.0,0.00011779,2]
[353677923,1739987467210,-500.0,0.00011779,2]
[353677924,1739987467220,-500.0,0.00011779,2]
[353677925,1739987467230,-500.0,0.00011779,2]
[353677926,1739987467240,-500.0,0.00011779,2]
[353677927,1739987467250,-500.0,0.00011779,2]
[353677928,1739987467259,-500.0,0.00011779,2]
[353677929,1739987467270,-1550.13,0.00011779,2]
[353677930,1739987467282,-500.0,0.00011779,2]
[353677931,1739987467292,-500.0,0.00011779,2]
[353677932,1739987467302,-500.0,0.00011779,2]
[353677933,1739987467312,-543.11789898,0.00011779,2]
[353677934,1739987467323,-500.0,0.00011779,2]
[353677935,1739987467332,-500.0,0.00011779,2]
[353677936,1739987467342,-204.01807778,0.00011779,2]
[353677937,1739987467352,-620.03,0.00011779,2]
[353677938,1739987467364,-500.0,0.00011779,2]
[353677939,1739987467374,-500.0,0.00011779,2]
[353677940,1739987467383,-500.0,0.00011779,2]
[353677941,1739987467393,-500.0,0.00011779,2]
[353677942,1739987467403,-500.0,0.00011779,2]
[353677943,1739987467413,-500.0,0.00011779,2]
[353677944,1739987467423,-572.68856589,0.00011779,2]
[353677945,1739987467433,-500.0,0.00011779,2]
[353677946,1739987467442,-500.0,0.00011779,2]
[353677947,1739987467452,-500.0,0.00011779,2]
[353677948,1739987467462,-500.0,0.00011779,2]
[353677949,1739987467473,-575.7,0.00011779,2]
[353677950,1739987467482,-500.0,0.00011779,2]
[353677951,1739987467491,-500.0,0.00011779,2]
[353677952,1739987467501,-500.0,0.00011779,2]
[353677953,1739987467511,-500.0,0.00011779,2]
[353677954,1739987467521,-1988.7,0.00011779,2]
[353677955,1739987467530,-500.0,0.00011779,2]
[353677956,1739987467539,-500.0,0.00011779,2]
[353677957,1739987467548,-500.0,0.00011779,2]
[353677958,1739987467558,-500.0,0.00011779,2]
[353677959,1739987467567,-500.0,0.00011779,2]
[353677960,1739987467576,-500.0,0.00011779,2]
[353677961,1739987467585,-500.0,0.00011779,2]
[353677962,1739987467594,-500.0,0.00011779,2]
[353677963,1739987467604,-500.0,0.00011779,2]
[353677964,1739987467613,-500.0,0.00011779,2]
[353677965,1739987467623,-500.0,0.00011779,2]
[353677966,1739987467633,-500.0,0.00011779,2]
[353677967,1739987467643,-500.0,0.00011779,2]
[353677968,1739987467652,-500.0,0.00011779,2]
[353677969,1739987467662,-500.0,0.00011779,2]
[353677970,1739987467671,-500.0,0.00011779,2]
[353677971,1739987467680,-1259.65,0.00011779,2]
[353677972,1739987467690,-500.0,0.00011779,2]
[353677973,1739987467701,-500.0,0.00011779,2]
[353677974,1739987467710,-500.0,0.00011779,2]
[353677975,1739987467720,-500.0,0.00011779,2]
[353677976,1739987467729,-500.0,0.00011779,2]
[353677977,1739987467739,-500.0,0.00011779,2]
[353677978,1739987467749,-500.0,0.00011779,2]
[353677979,1739987467758,-500.0,0.00011779,2]
[353677980,1739987467767,-325.42755532,0.00011779,2]
[353677981,1739987467776,-500.0,0.00011779,2]
[353677982,1739987467786,-500.0,0.00011779,2]
[353677983,1739987467796,-500.0,0.00011779,2]
[353677984,1739987467806,-500.0,0.00011779,2]
[353677985,1739987467815,-500.0,0.00011779,2]
[353677986,1739987467825,-698.22,0.00011779,2]
[353677987,1739987467835,-500.0,0.00011779,2]
[353677988,1739987467845,-645.33158587,0.00011779,2]
[353677989,1739987467854,-500.0,0.00011779,2]
[353677990,1739987467864,-523.2424498,0.00011779,2]
[353677991,1739987467874,-500.0,0.00011779,2]
[353677992,1739987467883,-500.0,0.00011779,2]
[353677993,1739987467893,-500.0,0.00011779,2]
[353677994,1739987467902,-500.0,0.00011779,2]
[353677995,1739987467912,-500.0,0.00011779,2]
[353677996,1739987467923,-500.0,0.00011779,2]
[353677997,1739987467932,-500.0,0.00011779,2]
[353677998,1739987467942,-500.0,0.00011779,2]
[353677999,1739987467951,-500.0,0.00011779,2]
[353678000,1739987467960,-500.0,0.00011779,2]
[353678001,1739987467970,-500.0,0.00011779,2]
[353678002,1739987467978,-500.0,0.00011779,2]
[353678003,1739987467988,-500.0,0.0001178,2]
[353678004,1739987467997,-500.0,0.0001178,2]
[353678005,1739987468006,-500.0,0.0001178,2]
[353678006,1739987468016,-500.72122402,0.0001178,2]
[353678007,1739987468025,-500.0,0.0001178,2]
[353678008,1739987468035,-416.19974152,0.0001178,2]
[353678009,1739987468046,-813.48,0.0001178,2]
[353678010,1739987468055,-500.0,0.0001178,2]
[353678011,1739987468065,-722.46,0.0001178,2]
[353678012,1739987468074,-1116.18,0.0001178,2]
[353678013,1739987468083,-500.0,0.0001178,2]
[353678014,1739987468092,-1001.38,0.0001178,2]
[353678015,1739987468101,-772.23,0.0001178,2]
[353678016,1739987468110,-1129.31,0.0001178,2]
[353678017,1739987468120,-894.25,0.0001178,2]
[353678018,1739987468129,-500.0,0.0001178,2]
[353678019,1739987468139,-1066.3,0.0001178,2]
[353678020,1739987468148,-500.0,0.0001178,2]
[353678021,1739987468157,-1207.63,0.0001178,2]
[353678022,1739987468166,-500.0,0.0001178,2]
[353678023,1739987468175,-523.8,0.0001178,2]
[353678024,1739987468184,-1475.98,0.0001178,2]
[353678025,1739987468194,-707.46,0.0001178,2]
[353678026,1739987468203,-973.42,0.0001178,2]
[353678027,1739987468212,-1708.57,0.0001178,2]
[353678028,1739987468222,-758.41,0.0001178,2]
[353678029,1739987468231,-1055.55,0.0001178,2]
[353678030,1739987468240,-943.78,0.0001178,2]
[353678031,1739987468249,-500.0,0.0001178,2]
[353678032,1739987468259,-793.53,0.0001178,2]
[353678033,1739987468268,-829.08,0.0001178,2]
[353678034,1739987468279,-500.0,0.0001178,2]
[353678035,1739987468289,-628.54,0.0001178,2]
[353678036,1739987468298,-673.29,0.0001178,2]
[353678037,1739987468308,-585.45,0.0001178,2]
[353678038,1739987468319,-569.52,0.0001178,2]
[353678039,1739987468329,-551.33,0.0001178,2]
[353678040,1739987468339,-1188.83,0.0001178,2]
[353678041,1739987468349,-788.62,0.0001178,2]
[353678042,1739987468359,-503.08,0.0001178,2]
[353678043,1739987468369,-1971.73,0.0001178,2]
[353678044,1739987468379,-672.32,0.0001178,2]
[353678045,1739987468388,-500.0,0.0001178,2]
[353678046,1739987468398,-808.29,0.0001178,2]
[353678047,1739987468407,-500.0,0.0001178,2]
[353678048,1739987468416,-720.08,0.0001178,2]
[353678049,1739987468425,-566.48,0.0001178,2]
[353678050,1739987468435,-932.0,0.0001178,2]
[353678051,1739987468444,-840.91,0.0001178,2]
[353678052,1739987468454,-517.52,0.0001178,2]
[353678053,1739987468463,-662.15,0.0001178,2]
[353678054,1739987468473,-1035.82,0.0001178,2]
[353678055,1739987468483,-1035.21,0.0001178,2]
[353678056,1739987468492,-1483.43,0.0001178,2]
[353678057,1739987468502,-1154.98,0.0001178,2]
[353678058,1739987468511,-811.37,0.0001178,2]
[353678059,1739987468520,-896.95,0.0001178,2]
[353678060,1739987468529,-954.7,0.0001178,2]
[353678061,1739987468538,-1939.26,0.0001178,2]
[353678062,1739987468548,-753.25,0.0001178,2]
[353678063,1739987468557,-1057.93,0.0001178,2]
[353678064,1739987468567,-1081.88,0.0001178,2]
[353678065,1739987468577,-893.96,0.0001178,2]
[353678066,1739987468586,-1776.36,0.0001178,2]
[353678067,1739987468595,-1231.15,0.0001178,2]
[353678068,1739987468604,-1082.49,0.0001178,2]
[353678069,1739987468613,-1074.53,0.0001178,2]
[353678070,1739987468623,-500.0,0.0001178,2]
[353678071,1739987468633,-1842.35,0.0001178,2]
[353678072,1739987468642,-500.0,0.0001178,2]
[353678073,1739987468652,-1188.97,0.0001178,2]
[353678074,1739987468661,-881.03,0.0001178,2]
[353678075,1739987468670,-711.42,0.0001178,2]
[353678076,1739987468680,-819.54,0.0001178,2]
[353678077,1739987468690,-1127.42,0.0001178,2]
[353678078,1739987468699,-744.32,0.0001178,2]
[353678079,1739987468709,-500.0,0.0001178,2]
[353678080,1739987468719,-904.15,0.0001178,2]
[353678081,1739987468728,-500.0,0.0001178,2]
[353678082,1739987468738,-500.0,0.0001178,2]
[353678083,1739987468747,-744.25,0.0001178,2]
[353678084,1739987468757,-1246.08,0.0001178,2]
[353678085,1739987468767,-1227.92,0.0001178,2]
[353678086,1739987468777,-500.0,0.0001178,2]
[353678087,1739987468787,-664.94,0.0001178,2]
[353678088,1739987468796,-1901.67,0.0001178,2]
[353678089,1739987468806,-500.0,0.0001178,2]
[353678090,1739987468815,-500.0,0.0001178,2]
[353678091,1739987468825,-1108.43,0.0001178,2]
[353678092,1739987468835,-990.17,0.0001178,2]
[353678093,1739987468844,-1901.78,0.0001178,2]
[353678094,1739987468854,-500.0,0.0001178,2]
[353678095,1739987468863,-500.0,0.0001178,2]
[353678096,1739987468876,-1290.72,0.0001178,2]
[353678097,1739987468886,-2211.03,0.0001178,2]
[353678098,1739987468897,-1736.87,0.0001178,2]
[353678099,1739987468908,-2335.41,0.0001178,2]
[353678100,1739987468917,-500.0,0.0001178,2]
[353678101,1739987468927,-812.42,0.0001178,2]
[353678102,1739987468936,-1527.63,0.0001178,2]
[353678103,1739987468945,-500.0,0.0001178,2]
[353678104,1739987468954,-4591.13,0.0001178,2]
[353678105,1739987468974,-500.0,0.0001178,2]
[353678106,1739987468983,-1000.0,0.0001178,2]
[353678107,1739987468992,-1566.76,0.0001178,2]
[353678108,1739987469002,-1821.09,0.0001178,2]
[353678109,1739987469011,-955.62,0.0001178,2]
[353678110,1739987469020,-500.0,0.0001178,2]
[353678111,1739987469029,-1496.47,0.0001178,2]
[353678112,1739987469038,-500.0,0.0001178,2]
[353678113,1739987469048,-1307.0,0.0001178,2]
[353678114,1739987469057,-1091.01,0.0001178,2]
[353678115,1739987469067,-500.0,0.0001178,2]
[353678116,1739987469077,-1646.83,0.0001178,2]
[353678117,1739987469086,-500.0,0.0001178,2]
[353678118,1739987469096,-882.64,0.0001178,2]
[353678119,1739987469105,-2442.27,0.0001178,2]
[353678120,1739987469115,-926.03,0.0001178,2]
[353678121,1739987469125,-513.95,0.0001178,2]
[353678122,1739987469135,-644.6809385,0.0001178,2]
[353678123,1739987469144,-999.95,0.0001178,2]
[353678124,1739987469154,-1684.83,0.0001178,2]
[353678125,1739987469163,-1014.56,0.0001178,2]
[353678126,1739987469172,-1071.28,0.0001178,2]
[353678127,1739987469183,-500.0,0.0001178,2]
[353678128,1739987469192,-1230.45,0.0001178,2]
[353678129,1739987469202,-788.39,0.0001178,2]
[353678130,1739987469212,-500.0,0.0001178,2]
[353678131,1739987469222,-737.79,0.0001178,2]
[353678132,1739987469231,-500.0,0.0001178,2]
[353678133,1739987469240,-1140.37,0.0001178,2]
[353678134,1739987469250,-1541.55,0.0001178,2]
[353678135,1739987469260,-1012.93,0.0001178,2]
[353678136,1739987469269,-993.33,0.0001178,2]
[353678137,1739987469282,-500.0,0.0001178,2]
[353678138,1739987469292,-947.02,0.0001178,2]
[353678139,1739987469302,-752.42,0.0001178,2]
[353678140,1739987469311,-1322.03,0.0001178,2]
[353678141,1739987469322,-500.0,0.0001178,2]
[353678142,1739987469332,-440.54890332,0.0001178,2]
[353678143,1739987469342,-1118.2,0.0001178,2]
[353678144,1739987469352,-992.83,0.0001178,2]
[353678145,1739987469363,-1423.73,0.0001178,2]
[353678146,1739987469374,-1072.75,0.0001178,2]
[353678147,1739987469384,-1110.66,0.0001178,2]
[353678148,1739987469393,-500.0,0.0001178,2]
[353678149,1739987469403,-991.44,0.0001178,2]
[353678150,1739987469412,-500.0,0.0001178,2]
[353678151,1739987469422,-734.87,0.0001178,2]
[353678152,1739987469431,-1462.21,0.0001178,2]
[353678153,1739987469441,-506.11,0.0001178,2]
[353678154,1739987469451,-500.0,0.0001178,2]
[353678155,1739987469460,-660.15,0.0001178,2]
[353678156,1739987469470,-500.0,0.0001178,2]
[353678157,1739987469479,-1154.52,0.0001178,2]
[353678158,1739987469489,-500.0,0.0001178,2]
[353678159,1739987469499,-705.06,0.0001178,2]
[353678160,1739987469508,-694.37,0.0001178,2]
[353678161,1739987469517,-928.72,0.0001178,2]